bitfinex-derivatives/quotes_BNBF0:USTF0_20250309
["timestamp","ask_amount","ask_price","bid_price","bid_amount"]
[1741541919543,1.06873897,557.56,556.96,0.30076677]
[1741541919746,1.06873897,557.55,556.95,0.35909866]
[1741541920046,1.7094917,557.57,556.95,0.35909866]
[1741541920047,1.06873897,557.54,556.95,0.35909866]
[1741541920243,1.06873897,557.53,556.95,0.35909866]
[1741541920445,1.06873897,557.52,556.95,0.35909866]
[1741541920647,1.06873897,557.51,556.95,0.35909866]
[1741541920847,1.06873897,557.5,556.95,0.35909866]
[1741541921145,1.06873897,557.49,556.95,0.35909866]
[1741541921346,1.06873897,557.48,556.95,0.35909866]
[1741541921542,1.06873897,557.47,556.95,0.35909866]
[1741541921742,4.71550164,557.46,556.95,0.35909866]
[1741541921946,2.77823067,557.45,556.95,0.35909866]
[1741541922142,1.06873897,557.44,556.95,0.35909866]
[1741541922346,1.06873897,557.43,556.95,0.35909866]
[1741541922547,1.06873897,557.42,556.95,0.35909866]
[1741541922746,1.06873897,557.41,556.95,0.35909866]
[1741541922947,1.06873897,557.4,556.95,0.35909866]
[1741541923146,1.06873897,557.41,556.95,0.35909866]
[1741541923347,3.64676267,557.39,556.95,0.35909866]
[1741541923551,1.06873897,557.38,556.95,0.35909866]
[1741541924050,3.64676267,557.37,556.95,0.35909866]
[1741541924249,1.06873897,557.36,556.95,0.35909866]
[1741541924550,4.71550164,557.36,556.95,0.35909866]
[1741541924745,3.64676267,557.36,556.95,0.35909866]
[1741541924950,3.64676267,557.35,556.95,0.35909866]
[1741541925844,4.68622199,557.34,556.95,0.35909866]
[1741541926046,1.06538121,557.33,556.13,0.31245932]
[1741541926249,1.06538121,557.32,556.15,0.35961521]
[1741541926449,1.06538121,557.31,556.16,0.30093576]
[1741541926749,1.06538121,557.3,556.16,0.30093576]
[1741541927151,1.06538121,557.29,556.16,0.30093576]
[1741541927350,3.64676267,557.29,556.16,0.30093576]
[1741541927551,1.06538121,557.28,556.16,0.30093576]
[1741541927751,4.71214388,557.28,556.16,0.30093576]
[1741541927945,1.06538121,557.27,556.16,0.30093576]
[1741541928149,4.71214388,557.27,556.16,0.30093576]
[1741541928345,4.71214388,557.27,556.17,0.30093576]
[1741541928346,3.30449329,557.26,556.17,0.30093576]
[1741541928653,1.06538121,557.25,556.18,0.30093576]
[1741541928853,1.06538121,557.24,556.16,0.30093576]
[1741541929052,1.06538121,557.24,556.15,0.35961521]
[1741541929053,1.06538121,557.23,556.17,0.30093576]
[1741541929353,1.06538121,557.22,556.18,0.30093576]
[1741541929555,1.06538121,557.21,556.19,0.30093576]
[1741541929750,1.06538121,557.2,556.16,0.30093576]
[1741541929950,1.06538121,557.19,556.17,0.30102776]
[1741541930150,1.06538121,557.19,556.16,0.30102776]
[1741541930348,0.64,557.2,556.17,0.30102776]
[1741541930554,3.64676267,557.18,556.16,0.30102776]
[1741541930754,1.06538121,557.17,556.18,0.35959581]
[1741541930949,1.06538121,557.17,556.19,0.30102776]
[1741541931155,3.64676267,557.16,556.19,0.30102776]
[1741541931752,3.95929494,557.15,556.19,0.30102776]
[1741541932055,3.64676267,557.14,556.19,0.30102776]
[1741541932955,0.31253227,557.15,556.21,0.35957641]
[1741541932956,3.64676267,557.13,556.21,0.35957641]
[1741541933150,1.05877583,557.12,556.22,0.30102776]
[1741541933351,3.64676267,557.11,556.22,0.30102776]
[1741541933555,3.64676267,557.11,556.24,0.35955702]
[1741541933756,3.64676267,557.11,556.25,0.30103573]
[1741541933953,1.40260103,557.1,556.27,0.35953763]
[1741541934148,1.40260103,557.09,556.28,0.30102717]
[1741541934349,1.40260103,557.09,556.3,0.35951824]
[1741541934556,1.40260103,557.09,556.31,0.30102717]
[1741541934757,1.40260103,557.08,556.32,0.35950532]
[1741541935057,1.71515155,557.08,556.33,0.30102717]
[1741541935257,1.71515155,557.08,556.34,0.35949239]
[1741541935457,1.40260103,557.07,556.35,0.30102717]
[1741541935852,3.64676267,557.06,556.35,0.30102717]
[1741541936052,3.64676267,557.06,556.36,0.35947947]
[1741541936250,3.64676267,557.06,556.37,0.30102717]
[1741541936452,3.64676267,557.05,556.38,0.35946655]
[1741541936751,3.64676267,557.05,556.39,0.30102717]
[1741541936953,3.64676267,557.05,556.4,0.66051382]
[1741541937151,2.29660103,557.04,556.41,0.66050736]
[1741541937460,1.40260103,557.03,556.42,0.6605009]
[1741541937959,0.31253087,557.02,556.43,0.30106019]
[1741541938752,0.31253087,557.02,556.44,0.35942779]
[1741541938956,0.31253087,557.02,556.45,0.30106019]
[1741541940258,0.31253087,557.02,556.46,0.35941487]
[1741541940463,0.31253087,557.02,556.47,0.30106019]
[1741541940657,1.38415152,557.01,556.47,0.30106019]
[1741541940857,1.38415152,557.01,556.47,0.35940841]
[1741541941061,1.38415152,557.0,556.47,0.35940841]
[1741541941560,0.31253087,557.02,556.47,0.35940841]
[1741541941561,1.38415152,556.99,556.47,0.35940841]
[1741541942359,0.31253087,557.02,556.47,0.35940841]
[1741541943362,0.31253087,557.02,556.48,0.30099457]
[1741541943962,0.894,557.04,556.48,0.30099457]
[1741541945459,0.894,557.04,556.49,0.30087465]
[1741541945664,0.894,557.04,556.5,0.30087465]
[1741541945960,0.894,557.04,556.51,0.30087465]
[1741541946264,0.894,557.04,556.52,0.30087465]
[1741541946467,0.894,557.04,556.48,0.30087465]
[1741541946766,0.894,557.04,556.49,0.30087465]
[1741541947164,0.894,557.04,556.5,0.30087465]
[1741541947365,0.894,557.04,556.48,0.30087465]
[1741541947868,0.894,557.04,556.47,0.35940841]
[1741541948063,0.894,557.04,556.48,0.30080438]
[1741541948965,0.894,557.04,556.47,0.35940841]
[1741541949167,0.669,557.03,556.48,0.30083433]
[1741541950362,0.669,557.03,556.49,0.30083433]
[1741541950566,0.669,557.03,556.48,0.30083433]
[1741541950771,0.669,557.03,556.49,0.30082554]
[1741541950968,0.669,557.03,556.48,0.30082554]
[1741541951169,0.669,557.03,556.49,0.30082554]
[1741541951370,0.669,557.03,556.47,0.35940841]
[1741541951371,0.669,557.03,556.5,0.30082554]
[1741541951570,0.669,557.03,556.48,0.30082554]
[1741541951765,0.669,557.03,556.49,0.30082554]
[1741541951971,0.669,557.03,556.48,0.30082554]
[1741541952273,0.792,557.02,556.49,0.30082554]
[1741541952673,0.792,557.02,556.5,0.30082554]
[1741541952966,0.792,557.02,556.51,0.30082554]
[1741541953172,0.792,557.02,556.48,0.30082554]
[1741541953366,0.792,557.02,556.49,0.66022103]
[1741541953567,0.792,557.02,556.5,0.66021457]
[1741541953773,0.792,557.02,556.51,0.30082554]
[1741541953965,0.879,557.01,556.51,0.66020812]
[1741541954272,0.879,557.01,556.52,0.30082554]
[1741541955870,0.879,557.01,556.53,0.30082113]
[1741541956067,0.879,557.01,556.54,0.30082113]
[1741541956272,0.879,557.01,556.55,0.30082113]
[1741541956467,0.879,557.01,556.52,0.30082113]
[1741541956667,0.879,557.01,556.53,0.30082113]
[1741541956868,0.879,557.01,556.54,0.30082113]
[1741541957075,0.879,557.01,556.54,0.3593632]
[1741541957274,0.879,557.01,556.55,0.30082113]
[1741541957575,0.879,557.01,556.56,0.35935029]
[1741541957776,0.879,557.01,556.57,0.3008518]
[1741541957976,0.879,557.01,556.58,0.35933738]
[1741541958176,0.879,557.01,556.59,0.3008518]
[1741541958477,0.879,557.01,556.6,0.35932446]
[1741541959976,1.38830427,557.0,556.6,0.35932446]
[1741541960571,1.38830427,556.99,556.6,0.35932446]
[1741541961476,1.38830427,556.98,556.6,0.35932446]
[1741541962176,4.67054627,556.97,556.6,0.35932446]
[1741541962477,4.67054627,556.96,556.6,0.35932446]
[1741541962779,3.6116929,556.96,556.6,0.35932446]
[1741541963174,3.6116929,556.95,556.6,0.35932446]
[1741541963779,1.38830427,556.94,556.6,0.35932446]
[1741541964278,1.38830427,556.93,556.6,0.35932446]
[1741541964481,1.38830427,556.93,555.69,0.31274293]
[1741541964779,1.38830427,556.92,555.71,0.35989994]
[1741541964976,1.38830427,556.92,555.72,0.30112604]
[1741541965373,1.38830427,556.91,555.72,0.30112604]
[1741541965576,1.38830427,556.91,555.71,0.35989994]
[1741541965577,1.38830427,556.91,555.73,0.30112604]
[1741541965878,1.38830427,556.9,555.74,0.30112604]
[1741541966080,1.38830427,556.9,555.72,0.30112604]
[1741541966280,1.38830427,556.9,555.73,0.30112604]
[1741541966474,1.38830427,556.89,555.71,0.35989994]
[1741541966676,1.38830427,556.89,555.72,0.30112388]
[1741541966877,1.38830427,556.89,555.73,0.30112388]
[1741541967077,1.38830427,556.89,555.74,0.30112388]
[1741541967278,1.38830427,556.89,555.71,0.35989994]
[1741541967279,1.38830427,556.89,555.75,0.30112388]
[1741541967480,0.791,556.88,555.76,0.30112388]
[1741541967682,0.791,556.88,555.77,0.30112388]
[1741541967884,0.791,556.88,555.78,0.30112388]
[1741541968078,0.791,556.88,555.79,0.30112388]
[1741541968273,0.791,556.88,555.8,0.30112388]
[1741541968478,0.791,556.88,555.81,0.30112388]
[1741541968678,0.791,556.88,555.82,0.30112388]
[1741541968874,0.791,556.88,555.83,0.30112388]
[1741541969081,0.791,556.88,555.84,0.30112388]
[1741541969482,0.791,556.88,555.85,0.30112388]
[1741541969676,0.791,556.88,555.86,0.30112388]
[1741541969881,0.791,556.88,555.87,0.30112388]
[1741541970082,0.791,556.88,555.88,0.30097703]
[1741541970281,0.791,556.88,555.89,0.30097703]
[1741541970482,0.791,556.88,555.9,0.30097703]
[1741541970678,0.791,556.88,555.91,0.30097703]
[1741541970881,0.791,556.88,555.92,0.30097703]
[1741541971084,0.791,556.88,555.93,0.30097703]
[1741541971282,0.791,556.88,555.73,0.31265161]
[1741541971283,0.791,556.88,555.94,0.30097703]
[1741541971483,0.791,556.88,555.95,0.30097703]
[1741541971785,0.791,556.88,555.96,0.30105618]
[1741541971981,0.791,556.88,555.97,0.30105618]
[1741541972187,0.791,556.88,555.98,0.30105618]
[1741541972379,0.791,556.88,555.78,0.30105618]
[1741541972580,0.791,556.88,555.79,0.30105618]
[1741541972783,0.791,556.88,555.8,0.30105618]
[1741541972985,0.791,556.88,555.81,0.30105618]
[1741541973178,0.791,556.88,555.82,0.30105618]
[1741541973384,0.791,556.88,555.77,1.329858]
[1741541973584,0.791,556.88,555.79,0.35984814]
[1741541973784,0.791,556.88,555.8,0.30109389]
[1741541974082,0.791,556.88,555.82,0.35982872]
[1741541974484,0.791,556.88,555.83,0.30109389]
[1741541974980,0.791,556.88,555.85,0.3598093]
[1741541975184,0.791,556.88,555.86,0.30109389]
[1741541975384,0.791,556.88,555.88,0.35978988]
[1741541975584,0.791,556.88,555.89,0.30109389]
[1741541975880,0.791,556.88,555.91,0.35977046]
[1741541976085,0.791,556.88,555.92,0.30109389]
[1741541976786,1.71296757,556.87,555.92,0.30109389]
[1741541977586,2.39427944,556.86,555.92,0.30109389]
[1741541978187,1.40027944,556.85,555.92,0.30109389]
[1741541978791,1.40027944,556.84,555.91,0.35977046]
[1741541978984,1.06618632,556.83,555.92,0.30122993]
[1741541979191,1.40027944,556.82,555.92,0.30122993]
[1741541979384,1.06618632,556.81,555.92,0.30122993]
[1741541979686,1.06618632,556.81,555.91,0.35977046]
[1741541980297,1.40027944,556.8,555.91,0.35977046]
[1741541980495,1.06618632,556.79,555.91,0.35977046]
[1741541980690,1.37905718,556.79,555.91,0.35977046]
[1741541980891,1.40027944,556.78,555.91,0.35977046]
[1741541981294,1.40027944,556.77,555.92,0.3012739]
[1741541981696,0.31287086,556.79,555.92,0.3012739]
[1741541982394,0.31287086,556.79,555.91,0.35977046]
[1741541982600,1.40027944,556.83,555.92,0.30125175]
[1741541982794,1.40027944,556.82,555.92,0.30125175]
[1741541983394,1.40027944,556.81,555.92,0.30125175]
[1741541983799,1.71303501,556.81,555.92,0.30125175]
[1741541984095,1.40027944,556.8,555.92,0.30125175]
[1741541984899,0.31275557,556.81,555.92,0.30125175]
[1741541986099,1.06384155,556.8,555.93,0.30121811]
[1741541986295,4.70158309,556.79,555.94,0.30121811]
[1741541986496,1.06384155,556.78,555.92,0.30121811]
[1741541986695,1.06384155,556.77,555.95,0.30121811]
[1741541986896,1.06384155,556.76,555.96,0.30121811]
[1741541987097,3.63774154,556.76,555.92,0.30121811]
[1741541987700,4.7012559,556.75,555.92,0.30121811]
[1741541987902,1.06351436,556.74,555.92,0.30121811]
[1741541988099,3.63774154,556.73,555.92,0.30121811]
[1741541988298,1.06347247,556.72,555.92,0.30121811]
[1741541988504,3.63774154,556.73,555.92,0.30121811]
[1741541988700,4.70088212,556.72,555.92,0.30121811]
[1741541989005,2.76330151,556.71,555.92,0.30121811]
[1741541989208,1.06314058,556.7,555.92,0.30121811]
[1741541989402,2.76330151,556.69,555.91,0.35977046]
[1741541989606,2.76330151,556.68,555.91,0.35977046]
[1741541989806,2.76330151,556.67,555.91,0.35977046]
[1741541990006,3.30259557,556.66,555.91,0.35977046]
[1741541990207,3.30259557,556.65,555.91,0.35977046]
[1741541990404,3.30259557,556.64,555.91,0.35977046]
[1741541990707,3.30259557,556.63,555.91,0.35977046]
[1741541990906,3.30259557,556.62,555.91,0.35977046]
[1741541991107,3.30259557,556.61,555.91,0.35977046]
[1741541991307,6.94033711,556.6,555.91,0.35977046]
[1741541991503,3.30259557,556.59,555.91,0.35977046]
[1741541991704,1.06314058,556.58,555.91,0.35977046]
[1741541991904,1.05975257,556.57,555.91,0.35977046]
[1741541992103,1.05975257,556.56,555.91,0.35977046]
[1741541992303,2.75535668,556.55,555.91,0.35977046]
[1741541992501,3.29473257,556.54,555.91,0.35977046]
[1741541992702,3.29473257,556.53,555.91,0.35977046]
[1741541992906,3.29473257,556.52,555.91,0.35977046]
[1741541993101,1.05975257,556.51,555.91,0.35977046]
[1741541993306,1.05975257,556.5,555.91,0.35977046]
[1741541993507,1.05975257,556.49,555.91,0.35977046]
[1741541993706,1.05975257,556.48,555.91,0.35977046]
[1741541993908,3.63774154,556.48,555.91,0.35977046]
[1741541994107,1.05975257,556.47,555.91,0.35977046]
[1741541994701,3.63774154,556.46,555.91,0.35977046]
[1741541994903,1.05975257,556.45,555.91,0.35977046]
[1741541995109,4.69749411,556.45,555.91,0.35977046]
[1741541995309,1.05975257,556.44,555.91,0.35977046]
[1741541995711,1.05689962,556.44,555.91,0.35977046]
[1741541995910,0.31300734,556.43,555.91,0.35977046]
[1741541996106,3.91857976,556.43,555.91,0.35977046]
[1741541996305,2.74697732,556.42,555.91,0.35977046]
[1741541996507,1.05689962,556.41,555.91,0.35977046]
[1741541996808,1.05689962,556.4,555.91,0.35977046]
[1741541997006,1.05689962,556.39,555.91,0.35977046]
[1741541997312,1.05689962,556.38,555.91,0.35977046]
[1741541997915,3.60557242,556.37,555.91,0.35977046]
[1741541998110,1.05689962,556.36,555.91,0.35977046]
[1741541998512,4.66247204,556.35,554.57,1.329858]
[1741541998807,2.74405696,556.34,554.59,0.36062676]
[1741541999015,1.05689962,556.33,554.92,0.31309042]
[1741541999215,1.05689962,556.32,554.93,0.30155319]
[1741541999406,1.05689962,556.31,554.94,0.30155319]
[1741541999611,1.05689962,556.31,554.6,0.31315945]
[1741541999612,1.05689962,556.3,554.95,0.30155319]
[1741541999812,1.05689962,556.3,554.6,0.31315945]
[1741541999813,3.60557242,556.3,554.96,0.30155319]
[1741542000014,1.05689962,556.29,554.61,0.30155319]
[1741542000214,1.05689962,556.29,554.97,0.30155319]
[1741542000516,1.05689962,556.29,554.6,0.31315945]
[1741542000517,3.60557242,556.28,554.98,0.30155319]
[1741542000816,3.60557242,556.28,554.99,0.30155319]
[1741542001116,3.60557242,556.27,555.0,0.30155319]
[1741542001315,3.60557242,556.27,555.01,0.30155319]
[1741542001514,3.60557242,556.27,554.6,0.31315945]
[1741542001515,3.60557242,556.27,555.02,0.30155319]
[1741542001712,3.60557242,556.27,554.6,0.31315945]
[1741542001917,3.60557242,556.26,554.61,0.30147813]
[1741542002216,3.60557242,556.26,554.62,0.30147813]
[1741542002413,3.60557242,556.25,554.63,0.30147813]
[1741542002611,3.60557242,556.25,554.64,0.30147813]
[1741542002814,3.60557242,556.25,554.65,0.30147813]
[1741542003118,4.65872537,556.24,554.66,0.30147813]
[1741542003414,3.60557242,556.23,554.67,0.30147813]
[1741542003616,3.60557242,556.23,554.68,0.30147813]
[1741542003817,3.60557242,556.23,554.69,0.30147813]
[1741542004018,3.60557242,556.23,554.7,0.30147813]
[1741542004218,3.91874173,556.22,554.71,0.30147813]
[1741542004422,3.91874173,556.22,554.72,0.30147813]
[1741542004614,3.60557242,556.22,554.73,0.30147813]
[1741542004817,3.60557242,556.21,554.74,0.30147813]
[1741542005017,3.60557242,556.21,554.63,0.31316931]
[1741542005018,3.60557242,556.21,554.75,0.30147813]
[1741542005216,2.73485555,556.2,554.75,0.30147813]
[1741542005421,1.05186752,556.19,554.76,0.30147813]
[1741542005618,2.73485555,556.18,554.77,0.30147813]
[1741542005819,3.27458664,556.17,554.6,0.30147813]
[1741542006115,1.73895407,556.09,554.61,0.30147813]
[1741542006423,1.05186752,556.08,554.62,0.30147813]
[1741542006616,1.05186752,556.07,554.6,0.30147813]
[1741542006814,1.05186752,556.06,554.61,0.30147813]
[1741542007016,1.05186752,556.05,554.62,0.3017644]
[1741542007214,2.79082159,556.04,554.62,0.3017644]
[1741542007520,1.05186752,556.03,554.63,0.3017644]
[1741542007723,1.05186752,556.03,554.6,0.3017644]
[1741542007724,1.73895407,555.98,554.6,0.3017644]
[1741542007924,1.05186752,555.97,554.61,0.3017644]
[1741542008125,1.05186752,555.97,554.62,0.3017644]
[1741542008322,3.60557242,555.96,554.63,0.3017644]
[1741542008524,3.60557242,555.96,554.64,0.3017644]
[1741542008719,3.60557242,555.96,554.65,0.3017644]
[1741542009023,3.60557242,555.95,554.66,0.3017644]
[1741542009224,1.38675862,555.95,554.67,0.3017644]
[1741542009423,1.38675862,555.95,554.68,0.3017644]
[1741542009619,1.38675862,556.02,554.69,0.3017644]
[1741542009829,1.38675862,556.02,554.7,0.3017644]
[1741542010125,1.037,556.08,554.59,0.36062676]
[1741542010126,1.38675862,556.01,554.71,0.3017644]
[1741542010317,1.38675862,556.01,554.72,0.3017644]
[1741542010523,1.38675862,556.0,554.73,0.3017644]
[1741542010817,1.38675862,555.99,554.74,0.3017644]
[1741542011020,1.38675862,555.99,554.75,0.3017644]
[1741542011220,1.38675862,555.99,554.76,0.3017644]
[1741542011422,1.38675862,555.98,554.77,0.3017644]
[1741542011724,1.38675862,555.97,554.78,0.3017644]
[1741542011923,1.38675862,555.97,554.79,0.3017644]
[1741542012123,0.31326657,556.0,554.8,0.3017644]
[1741542012322,0.31326657,556.0,554.62,0.31326657]
[1741542012518,0.31326657,556.0,554.63,0.3016713]
[1741542012720,1.3765129,555.99,554.64,0.3016713]
[1741542013024,1.3765129,555.99,554.62,0.31326657]
[1741542013025,1.3765129,555.98,554.65,0.3016713]
[1741542013321,1.3765129,555.98,554.66,0.3016713]
[1741542013725,1.3765129,555.97,554.67,0.3016713]
[1741542013924,1.3765129,555.97,554.68,0.3016713]
[1741542014125,1.3765129,555.96,554.69,0.3016713]
[1741542014425,1.3765129,555.96,554.71,0.36054875]
[1741542014626,1.3765129,555.95,554.72,0.3016713]
[1741542014827,1.3765129,555.95,554.74,0.36052925]
[1741542015020,1.3765129,555.94,554.75,0.3016713]
[1741542015423,1.3765129,555.93,554.75,0.3016713]
[1741542015927,1.3765129,555.92,554.76,0.30169015]
[1741542016223,1.3765129,555.92,554.77,0.30169015]
[1741542016526,3.57985018,555.91,554.78,0.30169015]
[1741542016726,3.57985018,555.91,554.75,0.30169015]
[1741542016927,3.57985018,555.9,554.76,0.30169015]
[1741542017121,1.04887279,555.89,554.75,0.30169015]
[1741542017330,3.57985018,555.89,554.75,0.30169015]
[1741542017522,4.62858967,555.89,554.75,0.30169015]
[1741542018226,3.57985018,555.89,554.76,0.30169015]
[1741542018424,3.57985018,555.89,554.77,0.30169015]
[1741542018623,3.57985018,555.89,554.75,0.30169015]
[1741542018829,1.04925745,555.88,554.76,0.30169015]
[1741542019027,3.57985018,555.89,554.75,0.30169015]
[1741542019227,1.36273578,555.88,554.76,0.30169015]
[1741542019530,0.31331593,555.88,554.74,0.36052925]
[1741542019728,0.31331593,555.88,554.75,0.3017574]
[1741542020727,1.36323747,555.88,554.75,0.3017574]
[1741542021322,1.36323747,555.88,554.76,0.30177748]
[1741542021528,3.57985018,555.87,554.74,0.36052925]
[1741542021727,1.04992154,555.86,554.75,0.30178415]
[1741542021928,3.57985018,555.85,554.75,0.30178415]
[1741542022232,1.04992154,555.84,554.75,0.30178415]
[1741542022729,3.57985018,555.83,554.75,0.30178415]
[1741542023324,1.3765129,555.82,554.75,0.30178415]
[1741542023825,1.3765129,555.81,554.75,0.30178415]
[1741542024424,1.3765129,555.85,554.75,0.30178415]
[1741542024838,1.3765129,555.84,554.74,0.36052925]
[1741542025038,1.68984575,555.84,554.75,0.30176781]
[1741542025238,1.3765129,555.83,554.75,0.30176781]
[1741542025640,1.3765129,555.82,554.75,0.30176781]
[1741542026236,1.3765129,555.81,554.75,0.30176781]
[1741542026840,0.31333285,555.84,554.75,0.30176781]
[1741542027037,0.31333285,555.84,554.76,0.30176781]
[1741542027342,0.31333285,555.84,554.74,0.36052925]
[1741542027343,0.31333285,555.84,554.77,0.30176781]
[1741542027744,0.31333285,555.84,554.78,0.30176781]
[1741542027944,0.31333285,555.84,554.79,0.30176781]
[1741542028144,0.31333285,555.84,554.8,0.30176781]
[1741542028344,0.31333285,555.84,554.81,0.30176781]
[1741542028545,0.31333285,555.84,554.75,0.30176781]
[1741542028744,0.31333285,555.84,554.76,0.30176781]
[1741542029048,0.31333285,555.84,554.77,0.30176781]
[1741542029239,0.31333285,555.84,554.75,0.30176781]
[1741542029444,1.3765129,555.83,554.76,0.30176781]
[1741542029646,1.3765129,555.83,554.74,0.36052925]
[1741542029647,1.3765129,555.83,554.75,0.30176781]
[1741542029845,2.0985129,555.83,554.76,0.30176781]
[1741542030045,2.9195129,555.83,554.75,0.30176781]
[1741542030346,1.3765129,555.82,554.76,0.30176781]
[1741542030542,1.3765129,555.82,554.74,0.36052925]
[1741542030543,1.3765129,555.82,554.75,0.30176781]
[1741542030847,1.3765129,555.82,554.76,0.30176781]
[1741542031048,0.31333144,555.81,554.75,0.30176781]
[1741542031347,3.89339622,555.81,554.74,0.36052925]
[1741542031547,3.89339622,555.81,554.75,0.30175235]
[1741542031747,3.58006478,555.8,554.75,0.30175235]
[1741542032147,3.58006478,555.79,554.75,0.30175235]
[1741542032543,4.47106478,555.78,554.75,0.30175235]
[1741542033142,3.58006478,555.77,554.75,0.30175235]
[1741542033740,1.68984857,555.76,554.75,0.30175235]
[1741542034444,1.3765129,555.75,554.76,0.30175235]
[1741542034650,1.3765129,555.75,554.74,0.36052925]
[1741542034849,1.3765129,555.75,554.75,0.30167562]
[1741542035144,1.3765129,555.75,554.76,0.30167562]
[1741542035352,0.31333567,555.76,554.77,0.30167562]
[1741542035550,0.31333567,555.76,554.78,0.30167562]
[1741542035751,0.31333567,555.76,554.79,0.30168015]
[1741542035949,0.31333567,555.76,554.8,0.30168015]
[1741542036151,0.31333567,555.76,554.81,0.30168015]
[1741542036450,0.31333567,555.76,554.82,0.30168015]
[1741542036651,0.891,555.78,554.83,0.30168015]
[1741542036950,0.31329054,555.75,554.84,0.30168015]
[1741542037151,0.31329054,555.75,554.85,0.30168015]
[1741542037351,0.31329054,555.75,554.74,0.36052925]
[1741542037546,0.31329054,555.75,554.75,0.30167454]
[1741542037752,0.31329054,555.75,554.76,0.30167454]
[1741542038051,0.31329054,555.75,554.77,0.30167454]
[1741542038252,0.31329054,555.75,554.75,0.30167454]
[1741542038452,0.31329054,555.75,554.76,0.30167454]
[1741542038649,0.31329054,555.75,554.77,0.30167454]
[1741542038856,0.31329054,555.75,554.78,0.30167454]
[1741542039252,0.31329054,555.75,554.79,0.30169173]
[1741542039456,0.31329054,555.75,554.74,0.36052925]
[1741542039457,0.31329054,555.75,554.8,0.30169173]
[1741542039650,0.31329054,555.75,554.81,0.30169173]
[1741542039949,0.31329054,555.75,554.82,0.30169173]
[1741542040149,0.31329054,555.75,554.83,0.30169173]
[1741542040353,0.31329054,555.75,554.84,0.30169173]
[1741542040549,0.31329054,555.75,554.85,0.30169173]
[1741542040848,0.31329054,555.75,554.86,0.30169173]
[1741542041047,0.31329054,555.75,554.75,0.30169173]
[1741542041253,0.31329054,555.75,554.76,0.30169173]
[1741542041448,0.31329054,555.75,554.77,0.30169173]
[1741542041653,0.31329054,555.75,554.78,0.30169173]
[1741542041848,0.31329054,555.75,554.79,0.30169173]
[1741542042056,0.31329054,555.75,554.8,0.30169173]
[1741542042353,0.31329054,555.75,554.81,0.30169173]
[1741542042648,0.31329054,555.75,554.82,0.30169173]
[1741542042850,0.31329054,555.75,554.83,0.30169173]
[1741542043051,0.31329054,555.75,554.84,0.30169173]
[1741542043247,0.31329054,555.75,554.74,0.36052925]
[1741542043248,0.31329054,555.75,554.85,0.30169173]
[1741542043451,0.31329054,555.75,554.86,0.30169173]
[1741542043646,0.31329054,555.75,554.87,0.30169173]
[1741542043846,0.31329054,555.75,554.88,0.30169173]
[1741542044047,0.31329054,555.75,554.89,0.30169173]
[1741542044248,0.31329054,555.75,554.75,0.30169173]
[1741542044457,0.31329054,555.75,554.76,0.30169173]
[1741542044754,0.31329054,555.75,554.77,0.30169173]
[1741542044953,0.31329054,555.75,554.78,0.30169173]
[1741542045150,0.31329054,555.75,554.75,0.30169173]
[1741542045755,0.891,555.78,554.75,0.30169173]
[1741542045955,0.31326939,555.75,554.75,0.30169173]
[1741542046350,0.891,555.78,554.75,0.30169173]
[1741542046551,1.543,555.83,554.76,0.30169173]
[1741542046748,1.543,555.83,554.77,0.30169173]
[1741542047054,1.543,555.83,554.78,0.30169173]
[1741542047255,1.543,555.83,554.79,0.30169173]
[1741542047454,1.543,555.83,554.8,0.30169173]
[1741542047654,1.543,555.83,555.0,1.329858]
[1741542047849,1.543,555.83,555.01,0.30169173]
[1741542048254,1.543,555.83,555.0,1.329858]
[1741542048255,1.543,555.83,555.02,0.30169173]
[1741542048555,1.543,555.83,555.03,0.30169173]
[1741542048757,1.543,555.83,555.04,0.30169173]
[1741542048954,1.543,555.83,555.05,0.30169173]
[1741542049151,1.543,555.83,555.06,0.30169173]
[1741542049356,1.543,555.83,555.07,0.30169173]
[1741542049556,1.543,555.83,555.01,0.30169173]
[1741542049753,2.269,555.83,555.02,0.30169173]
[1741542050056,2.269,555.83,555.03,0.30169173]
[1741542050256,2.269,555.83,555.01,0.30169173]
[1741542050856,2.269,555.83,554.95,0.30169173]
[1741542051057,2.269,555.83,554.96,0.30169173]
[1741542051258,2.269,555.83,554.95,0.30169173]
[1741542051551,2.269,555.83,554.96,0.30169173]
[1741542051857,2.269,555.83,554.97,0.30169173]
[1741542052060,2.269,555.83,554.99,0.36036685]
[1741542052258,2.269,555.83,555.0,0.30169173]
[1741542052560,2.269,555.83,555.02,0.36034737]
[1741542052858,2.269,555.83,555.03,0.30169173]
[1741542053061,2.269,555.83,555.04,0.36033439]
[1741542053257,2.269,555.83,555.05,0.30169173]
[1741542053453,2.269,555.83,555.06,0.30169173]
[1741542053654,2.269,555.83,555.07,0.66200664]
[1741542053858,2.269,555.83,555.08,0.66200015]